bitfinex-derivatives/quotes_ETHF0:USTF0_20250908
["timestamp","ask_amount","ask_price","bid_price","bid_amount"]
[1757339287248,0.248,4336.1,4335.7,0.4188]
[1757339287443,0.248,4336.1,4335.6,3.2078]
[1757339287444,0.1645,4336.0,4335.6,3.2078]
[1757339287947,0.415,4335.9,4335.6,3.2078]
[1757339288655,3.2078,4336.7,4335.7,0.4188]
[1757339288947,0.415,4336.6,4336.1,3.2078]
[1757339289152,3.2078,4336.7,4336.2,0.4188]
[1757339289347,3.6228,4336.7,4336.1,3.6266]
[1757339289752,0.1645,4336.5,4335.8,0.248]
[1757339289943,0.415,4336.4,4335.8,0.248]
[1757339290241,3.2078,4336.2,4335.2,0.4188]
[1757339290444,0.415,4335.9,4335.2,0.4188]
[1757339290749,0.415,4335.9,4335.0,3.2078]
[1757339290944,0.1645,4336.0,4335.0,3.2078]
[1757339291146,0.415,4335.9,4335.0,3.2078]
[1757339291553,0.1645,4336.0,4335.0,3.2078]
[1757339292045,0.23065001,4335.9,4335.0,3.2078]
[1757339292551,0.415,4335.9,4335.0,3.2078]
[1757339292740,0.248,4335.8,4335.1,0.4188]
[1757339292946,0.248,4335.8,4335.0,3.2078]
[1757339293145,0.415,4335.7,4335.0,3.2078]
[1757339293345,0.415,4335.7,4335.1,0.4188]
[1757339294445,0.415,4335.7,4335.0,3.2078]
[1757339294648,0.1645,4335.5,4335.0,3.2078]
[1757339294856,0.415,4335.4,4335.0,3.2078]
[1757339295744,0.415,4335.4,4334.6,0.4188]
[1757339296641,0.1645,4336.0,4334.7,0.248]
[1757339296847,0.663,4336.1,4335.1,0.4188]
[1757339297054,0.52306416,4336.0,4335.1,0.4188]
[1757339297250,0.663,4336.1,4335.1,0.248]
[1757339297453,0.663,4336.1,4335.3,0.4188]
[1757339297750,3.2078,4336.2,4335.2,0.23065]
[1757339297751,0.415,4336.6,4335.7,0.4188]
[1757339297948,0.1645,4337.5,4335.7,0.4188]
[1757339297949,3.2078,4337.3,4336.6,0.2285]
[1757339298147,0.5795,4338.0,4337.3,0.2285]
[1757339299147,0.5795,4338.0,4336.7,3.2078]
[1757339299350,0.415,4337.8,4336.7,3.4558]
[1757339299555,0.1645,4337.5,4336.7,0.248]
[1757339299757,3.6228,4337.4,4336.7,0.248]
[1757339299958,3.6228,4337.4,4336.5,0.248]
[1757339300451,0.415,4337.4,4337.0,0.2285]
[1757339300646,0.663,4337.9,4337.0,0.2285]
[1757339300853,0.248,4337.9,4337.0,0.2285]
[1757339301051,0.415,4337.8,4337.0,0.2285]
[1757339301452,0.415,4337.8,4337.4,3.4363]
[1757339302161,0.248,4337.9,4337.4,3.4363]
[1757339302658,0.248,4337.9,4337.4,0.2285]
[1757339303051,0.415,4337.8,4337.1,0.2285]
[1757339303348,3.6228,4338.4,4337.5,0.2285]
[1757339303549,3.6228,4338.4,4338.0,0.2285]
[1757339303550,0.415,4338.4,4338.0,0.2285]
[1757339303749,0.415,4338.8,4338.0,0.2285]
[1757339304154,0.415,4338.9,4338.5,3.2078]
[1757339304361,0.415,4338.4,4338.0,3.2078]
[1757339304859,0.415,4338.4,4338.0,3.4363]
[1757339305551,0.415,4338.4,4338.0,0.2285]
[1757339305751,0.1645,4338.5,4338.0,0.2285]
[1757339306150,0.1645,4339.5,4338.2,0.64341]
[1757339306350,0.1645,4340.0,4339.4,3.2078]
[1757339306547,0.1645,4340.5,4339.6,0.2285]
[1757339306753,0.415,4340.6,4340.0,3.2078]
[1757339306959,0.1645,4340.5,4340.0,3.2078]
[1757339307359,0.415,4340.3,4339.3,3.2078]
[1757339307658,0.415,4340.3,4339.4,0.248]
[1757339308758,3.2078,4340.4,4339.3,3.2078]
[1757339309660,0.415,4340.3,4339.3,3.2078]
[1757339309954,3.2078,4340.4,4339.3,3.2078]
[1757339310159,0.415,4340.3,4339.3,3.2078]
[1757339310556,0.1645,4339.5,4339.3,3.2078]
[1757339310761,0.415,4339.4,4339.3,3.2078]
[1757339311262,0.1645,4339.5,4338.8,3.4558]
[1757339311456,0.415,4339.4,4338.8,3.4558]
[1757339311762,0.415,4339.4,4338.8,0.248]
[1757339313057,0.415,4339.4,4338.8,3.4558]
[1757339314059,3.4558,4339.8,4339.0,0.2285]
[1757339314366,3.4558,4339.8,4339.1,0.2285]
[1757339316262,0.3772,4339.7,4339.2,0.248]
[1757339316655,3.4558,4339.8,4338.8,3.2078]
[1757339316969,0.5348,4339.0,4338.9,0.248]
[1757339317463,0.5348,4340.0,4339.0,0.2159]
[1757339317656,0.1576,4340.0,4339.7,3.2078]
[1757339317861,0.3772,4339.9,4339.1,3.2078]
[1757339318256,0.1576,4340.0,4339.1,3.2078]
[1757339319160,0.3772,4339.9,4339.1,3.2078]
[1757339320161,0.1576,4340.0,4339.1,3.2078]
[1757339320364,0.3772,4339.9,4339.1,3.2078]
[1757339320963,0.1576,4340.0,4339.1,3.2078]
[1757339321169,0.3772,4339.9,4339.6,3.2078]
[1757339321968,0.3772,4339.9,4339.6,3.4237]
[1757339322668,0.1576,4340.0,4339.6,3.4237]
[1757339322866,0.3772,4339.9,4339.6,3.4237]
[1757339323066,0.1576,4340.0,4339.6,3.2078]
[1757339323466,0.3772,4339.9,4339.6,3.2078]
[1757339324371,0.3772,4340.0,4339.7,0.2159]
[1757339325072,0.3772,4340.4,4339.7,0.247]
[1757339326767,0.1645,4340.5,4339.7,0.247]
[1757339326768,0.3772,4339.9,4339.7,0.247]
[1757339327072,0.1576,4340.0,4339.6,3.2078]
[1757339327373,0.1576,4339.5,4339.3,0.247]
[1757339327562,0.1576,4339.5,4338.9,3.2078]
[1757339327770,0.5348,4339.0,4338.9,3.2078]
[1757339327968,0.1576,4339.5,4338.9,3.4548]
[1757339327969,0.3772,4339.4,4338.9,3.4548]
[1757339328172,0.3772,4339.9,4339.0,0.2159]
[1757339328369,0.3772,4339.9,4339.7,3.2078]
[1757339328572,0.3772,4339.9,4339.2,3.4548]
[1757339332075,0.3772,4339.9,4339.3,0.2159]
[1757339332974,0.1576,4340.0,4339.2,3.4548]
[1757339332975,0.1576,4340.0,4339.8,0.2159]
[1757339333176,0.3772,4340.4,4339.8,0.2159]
[1757339333375,0.3772,4340.2,4339.8,0.2159]
[1757339333679,0.3772,4340.0,4339.8,0.2159]
[1757339333868,3.3723,4340.5,4339.8,0.2159]
[1757339334073,0.88453163,4340.4,4339.8,0.2159]
[1757339334278,0.3772,4340.2,4339.7,3.2078]
[1757339334478,0.6346,4339.8,4339.7,3.7093]
[1757339335082,0.88503605,4339.8,4339.7,3.7093]
[1757339335277,0.50783605,4339.8,4339.7,3.9252]
[1757339335585,0.6346,4340.8,4340.7,0.2527]
[1757339335780,1.14236803,4340.8,4340.7,0.2527]
[1757339336187,0.50776803,4340.8,4340.6,0.247]
[1757339336385,0.3772,4340.9,4340.7,0.2159]
[1757339336680,0.50800112,4340.8,4340.5,3.2078]
[1757339336881,0.3772,4340.6,4340.5,3.2078]
[1757339337083,0.88520112,4340.6,4340.5,3.2078]
[1757339337278,0.50800112,4340.6,4340.5,3.4237]
[1757339337684,0.1576,4341.0,4340.5,3.2078]
[1757339337880,0.88508044,4340.9,4340.7,0.2159]
[1757339338087,0.50788044,4340.8,4340.7,0.2159]
[1757339338776,0.88508044,4340.8,4340.6,0.247]
[1757339338978,0.3772,4340.8,4340.7,0.247]
[1757339339980,0.3772,4341.4,4340.7,0.247]
[1757339340181,0.50757312,4341.3,4340.7,0.247]
[1757339340381,0.1576,4341.5,4340.7,0.247]
[1757339340382,0.3772,4341.1,4340.7,0.247]
[1757339340578,0.3772,4340.9,4340.8,0.247]
[1757339340783,0.88477312,4340.9,4340.8,0.247]
[1757339341484,0.3772,4341.4,4340.8,0.4629]
[1757339341692,0.88457861,4341.3,4341.1,3.2078]
[1757339341883,0.88457861,4341.2,4341.1,3.4605]
[1757339342091,1.14197861,4341.2,4341.1,3.7093]
[1757339342290,0.88457861,4341.2,4341.1,3.7093]
[1757339342589,0.6346,4341.2,4341.1,3.7093]
[1757339342791,0.6346,4341.2,4341.1,3.9563]
[1757339342990,0.1576,4340.5,4340.4,3.4605]
[1757339343186,0.7922,4340.5,4340.4,3.9563]
[1757339343381,0.1576,4341.0,4340.4,3.9563]
[1757339343593,0.3772,4340.9,4340.4,4.1722]
[1757339343789,0.3772,4340.9,4340.4,3.9563]
[1757339343989,0.5348,4341.0,4340.4,3.9252]
[1757339344188,0.7922,4341.0,4340.9,3.4605]
[1757339344592,0.7922,4341.0,4340.9,3.7093]
[1757339344889,0.5348,4341.5,4340.9,3.9252]
[1757339345087,0.88145803,4341.4,4341.3,0.5015]
[1757339345289,0.3772,4341.4,4341.3,0.5015]
[1757339345688,0.1576,4342.0,4341.3,0.2024]
[1757339345689,0.4011,4341.9,4341.3,0.2024]
[1757339345988,0.4011,4341.9,4341.5,0.2024]
[1757339346798,0.4011,4341.9,4341.4,0.66161]
[1757339347091,3.2078,4342.8,4341.8,3.4102]
[1757339347295,0.50387547,4342.4,4341.9,0.247]
[1757339347494,3.2078,4342.8,4341.9,0.247]
[1757339347495,3.2078,4342.8,4342.0,0.2024]
[1757339347796,3.2078,4342.8,4341.9,0.247]
[1757339347992,0.4011,4342.4,4341.9,0.247]
[1757339348194,3.2078,4342.8,4341.9,0.247]
[1757339348387,0.4011,4342.4,4341.9,0.247]
[1757339348892,3.2078,4342.8,4341.9,0.4494]
[1757339349286,0.6568,4342.4,4342.3,0.271]
[1757339349490,0.9061,4342.4,4342.3,0.271]
[1757339349692,0.8099,4342.0,4341.9,0.518]
[1757339349897,0.8099,4342.0,4341.9,0.7753]
[1757339350799,1.0592,4342.0,4341.9,0.271]
[1757339351003,1.0592,4342.0,4341.9,0.518]
[1757339351399,1.0592,4342.0,4341.9,0.7753]
[1757339351804,0.8099,4342.0,4341.9,0.7753]
[1757339352107,0.5542,4342.0,4341.9,0.7753]
[1757339352299,0.6581,4342.0,4341.8,3.2078]
[1757339352605,0.9061,4341.9,4341.8,3.2078]
[1757339353107,0.9061,4341.9,4341.8,3.4548]
[1757339353406,0.5542,4341.5,4341.4,0.00345554]
[1757339354502,0.5542,4341.5,4341.4,0.25045554]
[1757339354901,0.4011,4341.9,4341.4,0.45285554]
[1757339355107,0.4011,4341.9,4341.7,3.2078]
[1757339355308,0.4011,4341.9,4341.7,3.6572]
[1757339355605,0.1576,4342.5,4341.8,0.2024]
[1757339355811,0.4011,4342.4,4341.8,0.2024]
[1757339356710,0.1576,4342.5,4342.2,3.2078]
[1757339356909,0.4011,4342.4,4342.2,3.2078]
[1757339357211,0.1576,4342.5,4342.2,3.2078]
[1757339357910,0.4011,4342.4,4342.2,3.2078]
[1757339358211,0.1576,4342.5,4342.2,3.2078]
[1757339359007,0.1576,4342.5,4341.4,0.20585554]
[1757339359008,0.5542,4342.0,4341.9,0.247]
[1757339359211,0.5542,4342.0,4341.8,0.247]
[1757339359400,0.4011,4341.9,4341.8,0.247]
[1757339359602,0.5542,4341.5,4341.4,0.00345554]
[1757339359805,0.1531,4341.0,4340.0,3.2078]
[1757339360008,0.4011,4340.4,4339.5,3.2078]
[1757339360208,0.4011,4339.9,4339.1,0.247]
[1757339360612,0.4011,4339.9,4339.5,3.2078]
[1757339360809,0.4011,4339.9,4339.2,0.2058]
[1757339361112,0.00345554,4340.1,4339.6,0.2058]
[1757339361317,0.00345554,4340.1,4340.0,3.4136]
[1757339361820,0.00345554,4340.1,4340.0,3.6606]
[1757339362316,0.00345554,4340.1,4340.0,7.6606]
[1757339363114,0.00345554,4340.1,4340.0,7.4136]
[1757339363313,0.00345554,4340.1,4340.0,7.6606]
[1757339365312,0.4011,4341.4,4340.1,0.2024]
[1757339365515,0.4011,4341.4,4341.3,3.2078]
[1757339365817,0.4011,4341.4,4341.3,3.4548]
[1757339366014,0.1531,4342.0,4341.3,3.6572]
[1757339366317,0.4011,4341.9,4341.3,3.6572]
[1757339367517,0.1531,4342.0,4341.4,0.2024]
[1757339367717,0.1531,4342.0,4341.5,0.246]
[1757339367917,0.4011,4341.9,4341.5,0.246]
[1757339368112,0.1531,4342.0,4341.5,0.246]
[1757339368512,0.4011,4341.9,4341.5,0.246]
[1757339368719,0.1531,4342.0,4341.3,3.2078]
[1757339368720,0.1531,4342.0,4341.6,0.246]
[1757339369118,0.4011,4341.9,4341.6,0.246]
[1757339369723,0.4011,4341.9,4341.8,3.2078]
[1757339370808,0.4011,4341.9,4341.3,3.2078]
[1757339371012,0.4011,4341.4,4341.3,3.2078]
[1757339371214,0.4011,4341.9,4341.3,3.2078]
[1757339373716,0.5542,4342.0,4341.4,0.246]
[1757339373924,0.5542,4342.0,4341.5,0.2024]
[1757339374123,0.4011,4341.9,4341.4,0.246]
[1757339374320,0.1531,4341.5,4341.4,0.246]
[1757339374624,0.4011,4341.4,4341.3,3.4538]
[1757339375714,0.4011,4341.4,4341.3,3.2078]
[1757339376419,3.4538,4342.3,4341.4,0.1882]
[1757339376420,3.5734,4342.3,4341.4,0.1882]
[1757339376617,0.53567351,4342.2,4341.4,0.1882]
[1757339376924,0.3656,4342.4,4341.8,3.396]
[1757339377117,0.3656,4342.4,4342.3,3.2078]
[1757339377318,3.3609,4343.0,4341.9,0.246]
[1757339377523,0.3656,4342.4,4341.9,0.246]
[1757339378127,3.3609,4343.0,4341.9,0.246]
[1757339378317,0.1541,4342.0,4341.9,0.246]
[1757339378622,0.5197,4342.0,4341.9,0.246]
[1757339378821,0.3656,4341.9,4341.8,3.4538]
[1757339379222,0.3656,4341.9,4341.8,3.2078]
[1757339380025,0.1541,4341.5,4341.3,3.2078]
[1757339380222,0.3656,4341.4,4341.3,3.2078]
[1757339383824,0.5197,4342.0,4341.3,3.396]
[1757339384028,0.53589605,4341.9,4341.4,0.246]
[1757339384323,0.3656,4341.6,4341.4,0.246]
[1757339384526,0.3656,4341.9,4341.4,0.246]
[1757339384721,0.3656,4341.7,4341.6,0.1882]
[1757339385324,0.3656,4342.3,4341.4,0.246]
[1757339385627,0.53589235,4342.2,4341.6,0.1882]
[1757339385827,0.53589235,4342.1,4341.9,3.2078]
[1757339386020,0.1531,4342.5,4342.0,0.1882]
[1757339386222,0.3656,4342.3,4342.0,0.1882]
[1757339386423,0.3656,4342.2,4341.9,3.2078]
[1757339386618,0.3656,4342.9,4342.0,0.246]
[1757339386825,0.53579603,4342.8,4342.6,0.1882]
[1757339387022,0.1531,4343.0,4342.6,0.1882]
[1757339387329,0.3656,4342.8,4342.6,0.1882]
[1757339387828,0.1531,4343.0,4342.6,0.1882]
[1757339388023,0.3656,4342.8,4342.5,3.2078]
[1757339388227,0.3656,4342.9,4342.5,3.2078]
[1757339388428,0.3656,4342.7,4342.5,3.2078]
[1757339388631,0.3656,4342.9,4342.5,3.2078]
[1757339388928,0.3656,4342.6,4342.5,3.2078]
[1757339389728,0.3656,4342.9,4342.0,3.2078]
[1757339389925,0.1541,4342.5,4342.1,0.246]
[1757339390325,0.3656,4342.4,4342.1,0.246]
[1757339390634,0.3656,4342.4,4342.1,0.4342]
[1757339390833,0.1541,4342.5,4342.1,0.4342]
[1757339391032,0.3656,4342.4,4342.1,0.1882]
[1757339391226,0.1541,4342.5,4342.2,0.246]
[1757339391425,0.3656,4342.4,4342.3,0.246]
[1757339391824,0.3656,4342.4,4342.3,0.7497]
[1757339392234,0.3656,4342.4,4342.3,0.9379]
[1757339392729,0.5144,4342.4,4342.0,3.2078]
[1757339392927,0.6156,4342.3,4342.2,0.2431]
[1757339393524,0.88,4342.3,4342.1,0.246]
[1757339394524,0.5144,4342.3,4342.0,3.2078]
[1757339394729,0.3656,4342.2,4342.1,0.246]
[1757339394930,0.88,4342.2,4342.1,0.246]
[1757339396232,0.5144,4342.2,4342.0,3.2078]
[1757339396535,0.1541,4342.5,4341.5,3.4509]
[1757339396536,0.6156,4341.6,4341.5,3.4509]
[1757339396840,0.88,4341.6,4341.5,3.2078]
[1757339397039,0.88,4341.6,4341.5,3.4538]
[1757339397536,0.88,4341.6,4341.5,0.246]
[1757339398933,0.88,4341.1,4340.5,3.2078]
[1757339399140,0.6156,4340.7,4340.6,0.4891]
[1757339399433,0.6156,4340.7,4340.6,0.7497]
[1757339400337,0.88,4340.7,4340.6,0.7497]
[1757339400926,0.88,4340.7,4340.5,3.2078]
[1757339401127,0.3656,4340.1,4340.0,3.2078]
[1757339401336,0.1541,4339.5,4339.4,3.2078]
[1757339401638,0.5197,4339.5,4339.4,3.2078]
[1757339401839,0.5197,4340.0,4339.4,3.2078]
[1757339402139,0.1541,4340.0,4339.5,0.246]
[1757339402731,0.3656,4339.9,4339.5,0.246]
[1757339402933,0.1541,4340.0,4339.5,0.246]
[1757339403137,0.5197,4340.0,4339.9,3.2078]
[1757339404541,0.7697,4340.0,4339.9,3.4509]
[1757339404840,1.0341,4340.0,4339.9,0.2431]
[1757339405034,0.1541,4339.5,4339.4,3.4509]
[1757339405234,0.7697,4339.5,4339.4,3.2078]
[1757339405435,1.0341,4339.5,4339.4,3.4538]
[1757339405835,1.0341,4339.5,4339.4,3.2078]
[1757339406332,0.5197,4339.5,4339.4,3.2078]
[1757339406538,0.5197,4339.5,4339.1,0.246]
[1757339406539,0.369,4339.4,4339.1,0.246]
[1757339406938,0.1541,4339.5,4339.1,0.246]
[1757339407146,0.1541,4340.0,4339.3,0.1751]
[1757339407336,0.1541,4340.0,4339.4,0.246]
[1757339407538,0.5231,4340.0,4339.6,0.1751]
[1757339407739,0.369,4340.4,4339.9,3.3829]
[1757339408040,0.369,4340.4,4340.1,0.1751]
[1757339408236,3.2078,4341.3,4340.3,0.1751]
[1757339408442,3.2078,4341.3,4340.5,3.2078]
[1757339408847,3.2078,4341.3,4340.4,0.246]
[1757339408848,0.369,4340.9,4340.4,0.246]
[1757339409043,0.519,4340.5,4340.4,0.246]
[1757339409542,0.15,4340.5,4340.2,0.246]
[1757339410243,0.369,4340.4,4340.3,0.246]
[1757339410435,0.519,4340.0,4339.9,3.2078]
[1757339411548,0.369,4339.9,4339.8,0.246]
[1757339411840,0.369,4339.9,4339.3,3.2078]
[1757339411841,0.15,4339.5,4339.3,3.2078]
[1757339412042,0.369,4339.4,4339.3,3.2078]
[1757339412246,0.369,4339.4,4339.3,3.4538]
[1757339413644,0.369,4339.4,4339.3,3.2078]
[1757339413844,0.15,4339.0,4338.8,0.246]
[1757339414243,0.369,4338.9,4338.8,0.246]
[1757339414445,0.15,4339.0,4338.7,3.4538]
[1757339414747,0.369,4338.9,4338.7,3.4538]
[1757339414946,0.15,4339.0,4338.7,3.2078]
[1757339415650,0.369,4338.9,4338.7,3.2078]
[1757339415845,0.15,4339.0,4338.7,3.2078]
[1757339416146,0.369,4338.9,4338.7,3.2078]
[1757339416849,0.15,4339.0,4338.7,3.2078]
[1757339417246,0.369,4338.9,4338.7,3.2078]
[1757339417746,0.15,4339.0,4338.7,3.2078]
[1757339418348,3.5768,4339.3,4338.8,0.1751]
[1757339418552,3.2078,4339.3,4338.7,3.4538]
[1757339418752,3.5768,4339.3,4338.7,3.6289]
[1757339418951,0.369,4339.3,4338.7,3.6289]
[1757339419146,0.369,4339.4,4338.7,3.2078]
[1757339419354,0.15,4339.0,4338.8,0.246]
[1757339419548,0.369,4338.9,4338.8,0.246]
[1757339420049,0.369,4338.9,4338.7,3.2078]
[1757339420550,0.15,4339.0,4338.7,3.2078]
[1757339421151,0.369,4338.9,4338.7,3.2078]
[1757339421856,0.777,4339.0,4338.9,0.2487]
[1757339422048,0.777,4339.0,4338.7,3.2078]
[1757339422049,0.15,4338.5,4338.2,3.4538]
[1757339422249,0.627,4338.3,4338.2,3.7163]
[1757339422451,0.369,4338.3,4338.2,4.1401]
[1757339422852,0.369,4338.3,4338.2,3.965]
[1757339423254,0.369,4338.8,4338.2,3.965]
[1757339423453,0.369,4338.8,4338.2,4.1401]
[1757339424245,3.2078,4339.3,4338.9,0.5112]
[1757339424451,3.2078,4339.3,4338.9,0.6863]
[1757339424660,0.369,4339.2,4338.9,0.6863]
[1757339424956,3.2078,4339.3,4338.9,0.6863]
[1757339425455,3.2078,4339.3,4338.9,0.5112]
[1757339426250,0.369,4339.2,4338.9,0.5112]
[1757339426852,0.369,4339.2,4339.1,0.5112]
[1757339427354,0.369,4339.4,4339.3,0.5112]
[1757339427553,0.369,4339.4,4339.3,0.6863]
[1757339427851,0.519,4340.0,4339.4,0.1751]
[1757339428056,0.519,4340.0,4339.9,0.5112]
[1757339428654,0.369,4340.0,4339.9,0.6863]
[1757339429050,0.777,4340.0,4339.9,0.5112]
[1757339429648,0.258,4339.4,4339.3,3.4565]
[1757339429854,0.8821,4339.4,4339.3,3.2078]
[1757339430055,0.369,4339.3,4339.2,0.245]
[1757339430256,0.627,4339.3,4339.2,0.4937]
[1757339430754,0.15,4340.0,4339.3,0.1751]
[1757339430955,3.2078,4340.3,4339.9,0.6863]
[1757339431252,0.53616654,4340.2,4339.9,0.5112]
[1757339431460,0.777,4340.0,4339.9,0.5112]
[1757339431658,1.31316654,4340.0,4339.9,0.5112]
[1757339432053,0.777,4340.0,4339.9,0.5112]
[1757339432360,1.0321,4340.0,4339.9,0.2487]
[1757339432555,0.5131,4339.7,4339.5,0.245]
[1757339432857,1.0321,4339.0,4338.9,0.4937]
[1757339433052,0.15,4339.0,4338.9,0.245]
[1757339433255,0.15,4339.0,4338.3,3.2078]
[1757339433449,0.15,4338.5,4338.3,3.4528]
[1757339433656,0.369,4338.4,4338.3,3.4528]
[1757339434055,0.369,4338.4,4338.3,3.2078]
[1757339434250,0.369,4338.4,4338.3,3.4528]
[1757339434654,0.15,4338.5,4338.3,3.6279]
[1757339434855,0.519,4338.5,4338.3,3.6279]
[1757339435453,0.15,4338.5,4338.3,3.6279]
[1757339435654,0.3732,4338.4,4338.3,3.4528]
[1757339436055,0.3732,4338.4,4338.3,3.6141]
[1757339436456,0.3732,4338.4,4338.3,3.4528]
[1757339436862,0.15,4338.5,4338.3,3.6141]
[1757339437058,0.15,4339.0,4338.3,3.6141]
[1757339437257,0.3732,4338.8,4337.8,3.3691]
[1757339437456,0.1413,4338.0,4337.8,3.2078]
[1757339437758,0.3732,4337.9,4337.8,3.2078]
[1757339439466,0.8667,4337.9,4337.8,3.2078]
[1757339439965,0.6244,4337.4,4337.3,0.4986]
[1757339440166,0.6244,4337.4,4337.3,0.7441]
[1757339440167,0.3732,4337.4,4337.3,0.7441]
[1757339440553,0.3732,4337.4,4337.3,0.9054]
[1757339440763,0.1413,4338.0,4337.3,0.9054]
[1757339440764,0.3732,4337.9,4337.3,0.9054]
[1757339442357,0.3732,4337.9,4337.3,0.6604]
[1757339442563,0.1413,4337.5,4337.3,0.7441]
[1757339442863,0.3732,4337.4,4337.3,0.7441]
[1757339443560,0.8667,4337.4,4337.3,0.4986]
[1757339443755,0.1413,4337.5,4337.3,0.245]
[1757339443960,0.7657,4337.5,4337.4,0.4991]
[1757339444362,1.008,4337.5,4337.4,0.2536]
[1757339444959,1.008,4337.5,4337.4,0.4991]
[1757339445169,0.7657,4337.5,4337.4,0.4991]
[1757339445467,0.5145,4338.0,4337.4,0.6604]
[1757339445654,0.7657,4338.0,4337.9,0.4991]
[1757339446061,0.3732,4337.9,4337.4,0.245]
[1757339446260,1.008,4337.5,4337.4,0.4986]
[1757339446460,1.008,4337.5,4337.4,0.2536]
[1757339447163,1.008,4337.0,4336.9,3.2078]
[1757339447357,1.008,4337.0,4335.8,0.1613]
[1757339447358,0.3732,4336.9,4335.8,3.3691]
[1757339447562,0.8667,4336.4,4335.9,0.245]
[1757339447763,0.3732,4336.3,4336.2,0.2455]
[1757339447963,0.3732,4336.3,4336.2,0.4991]
[1757339449668,0.6244,4336.3,4336.2,0.4991]
[1757339450659,0.3732,4336.9,4336.2,0.6604]
[1757339450871,0.3732,4336.9,4336.3,3.2078]
[1757339451164,0.1413,4337.0,4336.3,3.2078]
[1757339451367,0.2512,4336.4,4336.3,3.4614]
[1757339451569,0.8667,4336.4,4335.8,3.3691]
[1757339451762,0.1413,4336.5,4335.3,3.2078]
[1757339451962,0.3732,4335.4,4335.3,3.2078]
[1757339452680,0.3732,4334.9,4334.8,3.2078]
[1757339452872,0.3732,4334.9,4334.4,0.245]
[1757339452873,0.1413,4334.5,4334.4,0.245]
[1757339453168,0.3732,4334.4,4334.3,3.2078]
[1757339456873,0.3732,4334.4,4334.3,3.7069]
[1757339458270,0.3732,4334.4,4333.3,0.18085423]
[1757339458271,4.4935,4334.4,4333.5,0.144]
[1757339458467,0.4962,4334.4,4334.3,0.6294]
[1757339458669,3.4528,4334.4,4334.1,0.3758]
[1757339458868,3.2078,4334.4,4334.3,0.6294]
[1757339459475,3.4528,4334.4,4334.3,0.6294]
[1757339460278,3.2078,4334.4,4334.3,0.8749]
[1757339465173,7.68352,4334.4,4334.3,0.3758]
[1757339465475,7.43852,4334.4,4333.5,0.144]
[1757339465673,3.2078,4333.8,4333.4,0.3587]
[1757339465872,0.245,4333.7,4333.1,0.5879]
[1757339466273,3.2078,4333.3,4333.1,0.2292]
[1757339466576,0.245,4333.2,4333.1,0.3587]
[1757339466776,0.245,4333.2,4332.6,0.3587]
[1757339466975,0.245,4333.2,4332.5,0.5027]
[1757339467176,0.245,4333.2,4332.5,0.144]
[1757339467476,0.245,4333.2,4332.8,0.53410418]
[1757339467682,0.245,4333.2,4332.9,0.3587]
[1757339467981,0.245,4333.2,4332.8,0.17540418]
[1757339468180,0.245,4333.2,4333.1,0.3587]
[1757339469084,3.2078,4333.3,4333.1,0.3587]
[1757339469281,0.245,4333.2,4333.1,0.3587]
[1757339471280,3.2078,4333.3,4333.0,0.1494]
[1757339471584,0.245,4333.2,4333.1,0.3587]
[1757339471778,10.7,4334.5,4333.2,0.3587]
[1757339471779,3.2078,4334.5,4333.2,0.3587]
[1757339471987,3.2078,4334.5,4334.0,0.1494]
[1757339472178,3.2078,4334.5,4334.1,0.3587]
[1757339472377,0.245,4334.4,4334.1,0.3587]
[1757339472882,3.2078,4335.1,4335.0,0.1494]
[1757339473081,3.2078,4335.1,4335.0,0.5081]
[1757339473383,3.4528,4335.1,4335.0,0.5081]
[1757339474585,11.9338729,4336.3,4335.0,0.5081]
[1757339474586,3.2078,4335.6,4335.5,0.5081]
[1757339474787,3.4528,4335.6,4335.5,0.5081]
[1757339475191,3.2078,4335.6,4335.5,0.5081]
[1757339475787,0.245,4335.7,4335.5,0.1494]
[1757339475986,0.245,4335.7,4335.6,0.3587]
[1757339476586,3.98664187,4335.7,4335.1,0.3587]
[1757339476783,3.2078,4335.2,4335.1,0.3587]
[1757339477081,3.98663247,4335.2,4335.1,0.3587]
[1757339479093,3.98663247,4335.2,4334.6,0.3587]
[1757339479291,3.2078,4334.7,4334.6,0.3587]
[1757339479483,3.98663247,4334.7,4334.6,0.3587]
[1757339480287,3.74163247,4334.7,4334.6,0.3587]
[1757339480785,3.98663247,4334.7,4334.5,0.1494]
[1757339480992,0.53383247,4334.6,4334.2,0.3587]
[1757339481187,0.245,4334.5,4334.2,0.3587]
[1757339481382,0.53383247,4334.4,4334.2,0.3587]
[1757339481587,0.245,4334.3,4334.2,0.3587]
[1757339481791,0.77883247,4334.3,4334.1,0.3587]
[1757339481987,3.74163247,4334.2,4334.1,0.3587]
[1757339482696,3.74163247,4334.2,4333.7,0.3587]
[1757339482987,0.77883247,4334.1,4333.7,0.3587]
[1757339483385,0.53383247,4334.0,4333.7,0.3587]
[1757339483591,0.245,4333.9,4333.7,0.3587]
[1757339483793,0.53383247,4333.8,4333.7,0.3587]